bitfinex-derivatives/quotes_BNBF0:USTF0_20250907
["timestamp","ask_amount","ask_price","bid_price","bid_amount"]
[1757232287378,3.62530386,866.41,864.76,0.20072272]
[1757232288184,3.62530386,866.28,864.76,0.20072272]
[1757232289281,3.62530386,866.19,864.76,0.20072272]
[1757232290384,3.62530386,866.08,864.76,0.20072272]
[1757232291384,3.62530386,865.94,864.76,0.20072272]
[1757232292383,3.62530386,866.13,864.76,0.20072272]
[1757232293388,3.62530386,866.14,864.76,0.20072272]
[1757232293585,2.58775352,865.79,864.76,0.20072272]
[1757232294089,3.62530386,866.14,864.76,0.20072272]
[1757232294090,2.58775352,865.85,864.76,0.20072272]
[1757232294586,2.58775352,865.86,864.76,0.20072272]
[1757232297190,2.58775352,865.87,864.76,0.20072272]
[1757232298693,2.58775352,865.89,864.76,0.20072272]
[1757232299892,2.58775352,865.84,864.76,0.20072272]
[1757232300292,2.58775352,865.87,864.76,0.20072272]
[1757232303397,2.58775352,865.86,864.76,0.20072272]
[1757232303794,2.58775352,865.85,864.76,0.20072272]
[1757232304597,2.58775352,865.89,864.76,0.20072272]
[1757232307096,3.62530386,866.24,864.76,0.20072272]
[1757232307097,2.58775352,865.87,864.76,0.20072272]
[1757232307500,2.58775352,865.86,864.76,0.20072272]
[1757232307896,2.58775352,865.9,864.76,0.20072272]
[1757232308596,2.58775352,865.86,864.76,0.20072272]
[1757232309604,2.58775352,865.85,864.76,0.20072272]
[1757232310103,2.58775352,865.83,864.76,0.20072272]
[1757232311697,2.58775352,865.87,864.76,0.20072272]
[1757232312102,2.58775352,865.84,864.76,0.20072272]
[1757232314297,2.58775352,865.79,864.76,0.20072272]
[1757232314802,3.62530386,866.12,864.76,0.20072272]
[1757232314803,2.58775352,865.81,864.76,0.20072272]
[1757232315300,2.58775352,865.76,864.76,0.20072272]
[1757232315500,1.14752388,865.76,864.76,0.20072272]
[1757232316205,3.62530386,866.2,864.76,0.20072272]
[1757232318205,3.62530386,866.18,864.76,0.20072272]
[1757232321309,3.62530386,866.13,864.76,0.20072272]
[1757232322310,3.62530386,866.15,864.76,0.20072272]
[1757232323515,3.62530386,866.12,864.76,0.20072272]
[1757232324520,2.58829434,865.76,864.76,0.20072272]
[1757232324814,1.14808995,865.76,864.76,0.20072272]
[1757232325719,3.62530386,866.62,864.76,0.20072272]
[1757232326516,3.62530386,866.57,864.76,0.20072272]
[1757232328616,3.62530386,866.63,864.76,0.20072272]
[1757232329617,3.62530386,866.58,864.76,0.20072272]
[1757232330622,3.62530386,866.56,864.76,0.20072272]
[1757232332718,3.62530386,866.53,864.76,0.20072272]
[1757232333719,2.58838351,866.12,864.76,0.20072272]
[1757232334319,2.58838351,866.07,864.76,0.20072272]
[1757232336320,2.58838351,866.04,864.76,0.20072272]
[1757232337324,2.58838351,866.02,864.76,0.20072272]
[1757232337921,2.58838351,865.94,864.76,0.20072272]
[1757232338423,2.58838351,865.83,864.76,0.20072272]
[1757232338622,1.14827704,865.83,864.76,0.20072272]
[1757232339327,3.62530386,866.16,864.76,0.20072272]
[1757232340126,3.62530386,866.19,864.76,0.20072272]
[1757232341126,3.62530386,866.16,864.76,0.20072272]
[1757232343227,3.62530386,866.1,864.76,0.20072272]
[1757232344432,3.62530386,866.18,864.76,0.20072272]
[1757232346234,3.62530386,866.12,864.76,0.20072272]
[1757232347336,3.62530386,866.08,864.76,0.20072272]
[1757232347736,2.58909135,865.76,864.76,0.20072272]
[1757232347935,1.1489724,865.76,864.76,0.20072272]
[1757232348235,3.62530386,866.08,864.76,0.20072272]
[1757232348432,3.62530386,866.05,864.76,0.20072272]
[1757232349431,3.62530386,866.08,864.76,0.20072272]
[1757232352441,3.62530386,866.09,864.76,0.20072272]
[1757232354539,3.62530386,865.92,864.76,0.20072272]
[1757232355036,1.55344877,865.33,864.76,0.20072272]
[1757232355337,3.42450586,865.92,864.19,0.77331508]
[1757232355542,5.17691132,866.36,864.19,0.77331508]
[1757232356038,5.17691132,866.36,864.24,0.77331508]
[1757232356640,5.17691132,866.54,864.24,0.77331508]
[1757232356840,2.58909537,865.73,864.24,0.77331508]
[1757232357939,1.14897655,865.72,864.24,0.77331508]
[1757232358137,1.14897655,865.72,864.28,0.77331508]
[1757232358337,1.14897655,865.72,864.6,0.20077251]
[1757232358540,5.17691132,866.54,864.6,0.20077251]
[1757232358841,5.17691132,866.56,864.6,0.20077251]
[1757232360739,5.17691132,866.6,864.6,0.20077251]
[1757232362850,5.17691132,866.59,864.6,0.20077251]
[1757232363351,3.62502836,866.09,864.6,0.20077251]
[1757232364453,5.17691132,866.59,864.6,0.20077251]
[1757232364454,3.62502836,866.11,864.6,0.20077251]
[1757232365452,3.62502836,865.98,864.6,0.20077251]
[1757232366455,3.62502836,866.01,864.6,0.20077251]
[1757232367055,2.58942543,865.71,864.6,0.20077251]
[1757232367255,1.14930614,865.71,864.6,0.20077251]
[1757232367457,3.62502836,866.04,864.6,0.20077251]
[1757232368559,5.17691132,866.48,864.6,0.20077251]
[1757232369261,3.62502836,866.68,864.6,0.20077251]
[1757232369658,3.62502836,866.88,864.6,0.20077251]
[1757232370662,3.62502836,866.87,864.6,0.20077251]
[1757232371763,3.62502836,866.89,864.6,0.20077251]
[1757232372763,3.62502836,866.61,864.6,0.20077251]
[1757232373763,3.62502836,866.67,864.6,0.20077251]
[1757232375863,3.62502836,866.64,864.6,0.20077251]
[1757232376364,2.59016009,866.21,864.6,0.20077251]
[1757232377466,2.59016009,866.2,864.6,0.20077251]
[1757232380270,2.59016009,866.2,864.61,0.71568427]
[1757232380470,2.59016009,866.19,864.6,0.20077251]
[1757232380667,2.59016009,866.19,864.61,0.71562051]
[1757232380872,2.59016009,866.19,864.6,0.20077251]
[1757232381069,2.59016009,866.6,864.61,0.71560278]
[1757232381269,2.59016009,866.6,864.62,0.71560278]
[1757232381474,2.59016009,866.63,864.63,0.71560278]
[1757232381673,2.59016009,866.63,864.64,0.71560278]
[1757232381873,2.59016009,866.63,864.65,0.71560278]
[1757232382073,2.59016009,866.59,864.66,0.71560278]
[1757232382371,2.59016009,866.59,864.67,0.71560278]
[1757232382569,2.59016009,866.59,864.68,0.71560278]
[1757232382768,2.59016009,866.59,864.69,0.71560278]
[1757232382971,2.59016009,866.59,864.6,0.20077251]
[1757232383171,2.59016009,866.59,864.61,0.71543041]
[1757232383372,2.59016009,866.59,864.62,0.71543041]
[1757232383570,2.59016009,866.56,864.63,0.71543041]
[1757232383773,2.59016009,866.56,864.64,0.71543041]
[1757232383974,2.59016009,866.56,864.65,0.71543041]
[1757232384172,2.59016009,866.56,864.66,0.71543041]
[1757232384376,2.59016009,866.56,864.67,0.71543041]
[1757232384675,2.59016009,866.56,864.68,0.71543041]
[1757232384972,2.59016009,866.56,864.6,0.20077251]
[1757232385172,2.59016009,866.56,864.61,0.7154444]
[1757232385372,2.59016009,866.56,864.62,0.7154444]
[1757232385578,2.59016009,866.56,864.63,0.7154444]
[1757232385876,2.59016009,866.56,864.64,0.7154444]
[1757232386073,2.59016009,866.56,864.65,0.7154444]
[1757232386271,2.59016009,866.56,864.66,0.7154444]
[1757232386478,2.59016009,866.56,864.67,0.7154444]
[1757232386774,2.59016009,866.56,864.68,0.7154444]
[1757232387073,2.59016009,866.56,864.6,0.20077251]
[1757232387277,2.59016009,866.56,864.61,0.71541753]
[1757232387575,2.59016009,866.56,864.62,0.71541753]
[1757232387776,2.59016009,866.57,864.63,0.71541753]
[1757232387978,2.59016009,866.57,864.64,0.71541753]
[1757232388177,2.59016009,866.57,864.65,0.71541753]
[1757232388476,2.59016009,866.57,864.66,0.71541753]
[1757232388774,2.59016009,866.57,864.67,0.71541753]
[1757232388972,2.59016009,866.57,864.68,0.71541753]
[1757232389173,2.59016009,866.57,864.6,0.20077251]
[1757232389476,2.59016009,866.57,864.61,0.71536193]
[1757232389673,2.59016009,866.57,864.62,0.71536193]
[1757232389877,2.59016009,866.57,864.63,0.71536193]
[1757232390176,2.59016009,866.57,864.64,0.71536193]
[1757232390475,2.59016009,866.57,864.65,0.71536193]
[1757232390773,2.59016009,866.57,864.6,0.20077251]
[1757232390978,2.59016009,866.57,864.61,0.71531978]
[1757232391279,2.59016009,866.09,864.62,0.71531978]
[1757232391475,2.59016009,866.09,864.63,0.71531978]
[1757232391674,2.59016009,866.09,864.6,0.20077251]
[1757232391974,2.59016009,866.09,864.61,0.71529962]
[1757232392174,2.59016009,866.09,864.62,0.71529962]
[1757232392375,2.59016009,866.09,864.63,0.71529962]
[1757232392578,2.59016009,866.09,864.6,0.20077251]
[1757232392877,2.59016009,866.09,864.61,0.71528087]
[1757232393073,2.59016009,866.09,864.62,0.71528087]
[1757232393375,2.59016009,866.21,864.63,0.71528087]
[1757232393575,2.59016009,866.21,864.64,0.71528087]
[1757232393873,3.62502836,866.63,864.6,0.20077251]
[1757232393874,2.59016009,866.19,864.6,0.20077251]
[1757232394076,2.59016009,866.19,864.61,0.71526357]
[1757232394275,2.59016009,866.19,864.62,0.71526357]
[1757232394480,2.59016009,866.12,864.63,0.71526357]
[1757232394781,2.59016009,866.12,864.6,0.20077251]
[1757232394982,2.59016009,866.15,864.61,0.71526545]
[1757232395182,2.59016009,866.15,864.62,0.71526545]
[1757232395382,2.59016009,866.15,864.63,0.71526545]
[1757232395676,2.59016009,866.15,864.6,0.20077251]
[1757232395884,2.59016009,866.15,864.61,0.71523248]
[1757232396179,2.59016009,866.15,864.62,0.71523248]
[1757232396480,2.59016009,866.15,864.63,0.71523248]
[1757232396781,2.59016009,866.15,864.6,0.20077251]
[1757232396981,2.59016009,866.15,864.61,0.71516219]
[1757232397178,2.59016009,866.15,864.62,0.71516219]
[1757232397377,2.59016009,866.15,864.63,0.71516219]
[1757232397581,2.59016009,866.67,864.64,0.71516219]
[1757232397779,2.59016009,866.67,864.65,0.71516219]
[1757232397980,2.59016009,866.67,864.66,0.71516219]
[1757232398179,2.59016009,866.67,864.67,0.71516219]
[1757232398379,2.59016009,866.67,864.6,0.20077251]
[1757232398681,2.59016009,866.67,864.61,0.71513714]
[1757232398884,2.59016009,866.67,864.62,0.71513714]
[1757232399082,3.62502836,867.24,864.63,0.71513714]
[1757232399083,2.59016009,866.68,864.63,0.71513714]
[1757232399286,2.59016009,866.68,864.64,0.71513714]
[1757232399485,2.59016009,866.68,864.65,0.71513714]
[1757232399688,2.59016009,866.68,864.66,0.71513714]
[1757232399882,2.59016009,866.68,864.67,0.71513714]
[1757232400086,2.59016009,866.68,864.6,0.20077251]
[1757232400385,2.59016009,866.68,864.61,0.71511345]
[1757232400684,2.59016009,866.68,864.62,0.71511345]
[1757232400885,2.59016009,866.68,864.63,0.71511345]
[1757232401089,2.59016009,866.68,864.64,0.71511345]
[1757232401287,2.59016009,866.69,864.65,0.71511345]
[1757232401484,2.59016009,866.69,864.66,0.71511345]
[1757232401689,2.59016009,866.69,864.67,0.71511345]
[1757232401889,2.59016009,866.69,864.6,0.20077251]
[1757232402089,2.59016009,866.69,864.61,0.71496503]
[1757232402284,2.59016009,866.69,864.62,0.71496503]
[1757232402485,2.59016009,866.69,864.63,0.71496503]
[1757232402786,2.59016009,866.69,864.64,0.71496503]
[1757232402989,2.59016009,866.69,864.65,0.71496503]
[1757232403186,2.59016009,866.69,864.66,0.71496503]
[1757232403488,2.59016009,866.69,864.6,0.20077251]
[1757232403489,2.59016009,866.67,864.67,0.71496503]
[1757232403689,2.59016009,866.67,864.6,0.20077251]
[1757232403886,2.59016009,866.67,864.61,0.71487519]
[1757232404089,2.59016009,866.67,864.62,0.71487519]
[1757232404285,2.59016009,866.66,864.63,0.71487519]
[1757232404490,2.59016009,866.66,864.64,0.71487519]
[1757232404786,2.59016009,866.65,864.65,0.71487519]
[1757232404991,2.59016009,866.65,864.66,0.71487519]
[1757232405287,2.59016009,866.65,864.6,0.20077251]
[1757232405486,2.59016009,866.65,864.61,0.71487123]
[1757232405790,2.59016009,866.65,864.62,0.71487123]
[1757232406091,2.59016009,866.65,864.63,0.71487123]
[1757232406290,2.59016009,866.65,864.64,0.71487123]
[1757232406590,2.59016009,866.65,864.65,0.71487123]
[1757232406788,2.59016009,866.65,864.66,0.71487123]
[1757232406993,3.62502836,866.6,864.6,0.20077251]
[1757232407190,3.62502836,866.6,864.61,0.71486984]
[1757232407493,2.59016009,866.21,864.62,0.71486984]
[1757232407689,2.59016009,866.21,864.63,0.71486984]
[1757232407889,2.59016009,866.21,864.6,0.20077251]
[1757232408088,2.59016009,866.21,864.61,0.71487092]
[1757232408292,2.59016009,866.21,864.62,0.71487092]
[1757232408586,2.59016009,866.16,864.6,0.20077251]
[1757232408792,2.59016009,866.16,864.61,0.71487149]
[1757232409087,2.59016009,866.16,864.62,0.71487149]
[1757232409286,2.59016009,866.16,864.6,0.20077251]
[1757232409490,2.59016009,866.16,864.61,0.7148728]
[1757232409688,2.59016009,866.17,864.62,0.7148728]
[1757232409891,2.59016009,866.17,864.63,0.7148728]
[1757232410092,2.59016009,866.17,864.6,0.20077251]
[1757232410290,2.59016009,866.17,864.61,0.71485512]
[1757232410588,2.59016009,866.08,864.62,0.71485512]
[1757232410892,2.59016009,866.08,864.6,0.20077251]
[1757232411193,2.59016009,866.08,864.61,0.71485302]
[1757232411394,2.59016009,866.08,864.62,0.71485302]
[1757232411592,2.59016009,866.08,864.6,0.20077251]
[1757232411792,2.59016009,866.08,864.61,0.71485302]
[1757232411991,2.59016009,866.08,864.62,0.71485302]
[1757232412294,2.59016009,866.07,864.6,0.20077251]
[1757232412495,2.59016009,866.07,864.61,0.71485378]
[1757232412694,2.59016009,866.07,864.62,0.71485378]
[1757232412891,2.59016009,866.07,864.6,0.20077251]
[1757232413090,2.59016009,866.07,864.61,0.71485387]
[1757232413294,2.59016009,866.08,864.62,0.71485387]
[1757232413591,2.59016009,866.08,864.6,0.20077251]
[1757232413795,2.59016009,866.08,864.61,0.71485517]
[1757232413989,2.59016009,866.08,864.62,0.71485517]
[1757232414193,2.59016009,866.08,864.6,0.20077251]
[1757232414392,2.59016009,866.08,864.61,0.71485703]
[1757232414592,2.59016009,866.08,864.62,0.71485703]
[1757232414792,2.59016009,866.26,864.63,0.71485703]
[1757232415096,2.59016009,866.26,864.64,0.71485703]
[1757232415293,2.59016009,866.26,864.6,0.20077251]
[1757232415497,2.59016009,866.26,864.61,0.71486137]
[1757232415793,2.59016009,866.26,864.62,0.71486137]
[1757232415997,2.59016009,866.26,864.63,0.71486137]
[1757232416195,2.59016009,866.26,864.64,0.71486137]
[1757232416393,2.59016009,866.26,864.6,0.20077251]
[1757232416593,2.59016009,866.26,864.61,0.7148661]
[1757232416791,2.59016009,866.26,864.62,0.7148661]
[1757232416994,2.59016009,866.26,864.63,0.7148661]
[1757232417194,2.59016009,866.26,864.64,0.7148661]
[1757232417391,2.59016009,866.23,864.6,0.20077251]
[1757232417593,2.59016009,866.23,864.61,0.71487143]
[1757232417893,2.59016009,866.23,864.62,0.71487143]
[1757232418194,2.59016009,866.23,864.63,0.71487143]
[1757232418397,2.59016009,866.23,864.64,0.71487143]
[1757232418597,2.59016009,866.23,864.65,0.71480954]
[1757232418900,2.59016009,866.64,864.66,0.71480954]
[1757232419093,2.59016009,866.64,864.67,0.71480954]
[1757232419397,6.21518845,866.66,864.68,0.71480954]
[1757232419594,2.59016009,866.66,864.69,0.71480954]
[1757232419794,2.59016009,866.65,864.7,0.71480954]
[1757232419997,2.59016009,866.65,864.71,0.71480954]
[1757232420196,2.59016009,866.65,864.72,0.71480954]
[1757232420396,2.59016009,866.66,864.73,0.71480954]
[1757232420598,2.59016009,866.66,864.74,0.71480954]
[1757232420798,2.59016009,866.66,864.75,0.71480954]
[1757232420995,2.59016009,866.66,864.76,0.71460245]
[1757232421199,2.59016009,866.66,864.6,0.20077251]
[1757232421398,2.59016009,866.67,864.61,0.71460245]
[1757232421595,2.59016009,866.67,864.62,0.71460245]
[1757232421796,2.59016009,866.67,864.63,0.71460245]
[1757232422098,2.59016009,866.67,864.64,0.71460245]
[1757232422299,2.59016009,866.67,864.65,0.71460245]
[1757232422495,2.59016009,866.67,864.66,0.71460245]
[1757232422699,2.59016009,866.67,864.67,0.71460245]
[1757232422894,2.59016009,866.67,864.68,0.71460245]
[1757232423094,2.59016009,866.67,864.69,0.71460245]
[1757232423295,2.59016009,866.67,864.7,0.71460245]
[1757232423499,2.59016009,866.68,864.71,0.71460245]
[1757232423794,2.59016009,866.68,864.72,0.71460245]
[1757232423999,2.59016009,866.68,864.73,0.71460245]
[1757232424199,2.59016009,866.68,864.74,0.71460245]
[1757232424396,2.59016009,866.68,864.6,0.20077251]
[1757232424596,2.59016009,866.68,864.61,0.71435416]
[1757232424797,2.59016009,866.68,864.62,0.71435416]
[1757232424999,2.59016009,866.67,864.63,0.71435416]
[1757232425196,2.59016009,866.67,864.64,0.71435416]
[1757232425500,2.59016009,866.67,864.65,0.71435416]
[1757232425701,2.59016009,866.67,864.66,0.71435416]
[1757232425902,2.59016009,866.67,864.67,0.71435416]
[1757232426099,2.59016009,866.67,864.68,0.71435416]
[1757232426302,2.59016009,866.67,864.69,0.71435416]
[1757232426499,2.59016009,866.67,864.7,0.71435416]
[1757232426702,2.59016009,866.68,864.71,0.71435416]
[1757232426998,2.59016009,866.68,864.72,0.71435416]
[1757232427203,2.59016009,866.68,864.73,0.71435416]
[1757232427402,2.59016009,866.68,864.74,0.71435416]
[1757232427602,2.59016009,866.68,864.6,0.20077251]
[1757232427797,2.59016009,866.68,864.61,0.71428013]
[1757232427999,2.59016009,866.68,864.62,0.71428013]
[1757232428203,2.59016009,866.64,864.63,0.71428013]
[1757232428404,2.59016009,866.64,864.64,0.71428013]
[1757232428601,2.59016009,866.64,864.6,0.20077251]
[1757232428602,2.59016009,866.64,864.65,0.71428013]
[1757232428801,2.59016009,866.51,864.66,0.71428013]
[1757232429000,2.59016009,866.51,864.67,0.71428013]
[1757232429202,2.59016009,866.4,864.68,0.71428013]
[1757232429406,2.59016009,866.4,864.69,0.71428013]
[1757232429705,2.59016009,866.4,864.7,0.71428013]
[1757232430008,2.59016009,866.4,864.71,0.71428013]
[1757232430211,2.59016009,866.4,864.6,0.20077251]
[1757232430508,2.59016009,866.4,864.61,0.71421241]
[1757232430708,2.59016009,866.41,864.62,0.71421241]
[1757232430908,2.59016009,866.41,864.63,0.71421241]
[1757232431107,2.59016009,866.41,864.64,0.71421241]
[1757232431408,2.59016009,866.06,864.65,0.71421241]
[1757232431609,2.59016009,866.06,864.66,0.71421241]
[1757232431803,2.59016009,866.05,864.67,0.71421241]
[1757232432008,2.59016009,866.05,864.68,0.71421241]
[1757232432306,2.59016009,866.04,864.6,0.20077251]
[1757232432508,2.59016009,866.04,864.61,0.71418908]
[1757232432805,3.62502836,866.4,864.62,0.71418908]
[1757232433005,2.59016009,866.42,864.63,0.71418908]
[1757232433209,1.55238537,865.48,864.6,0.20077251]
[1757232433406,2.59016009,866.35,864.61,0.68778322]
[1757232433605,2.59016009,866.35,864.62,0.68778322]
[1757232433809,2.59016009,866.32,864.63,0.68778322]
[1757232434109,2.59016009,866.32,864.64,0.68778322]
[1757232434408,2.59016009,866.38,864.65,0.68778322]
[1757232434606,2.59016009,866.38,864.66,0.68778322]
[1757232434804,2.59016009,866.37,864.67,0.68778322]
[1757232435008,2.59016009,866.37,864.68,0.68778322]
[1757232435203,2.59016009,866.37,864.69,0.68778322]
[1757232435408,2.59016009,866.37,864.3,0.77549611]
[1757232435607,2.59016009,866.37,864.31,0.70453069]
[1757232435808,2.59016009,866.37,864.32,0.70453069]
[1757232436009,2.59016009,866.36,864.33,0.70453069]
[1757232436211,2.59016009,866.36,864.29,0.77549611]
[1757232436212,2.59016009,866.36,864.34,0.70453069]
[1757232436411,2.59016009,866.36,864.35,0.70453069]
[1757232436613,2.59016009,866.36,864.36,0.70453069]
[1757232436909,2.59016009,866.36,864.37,0.70453069]
[1757232437108,2.59016009,866.36,864.38,0.70453069]
[1757232437309,2.59016009,866.36,864.39,0.70453069]
[1757232437513,2.59016009,866.37,864.4,0.70453069]
[1757232437710,2.59016009,866.37,864.41,0.70453069]
[1757232438009,2.59016009,866.37,864.42,0.70453069]
[1757232438211,2.59016009,866.37,864.43,0.70453069]
[1757232438409,2.59016009,866.37,864.44,0.70453069]
[1757232438613,2.59016009,866.37,864.45,0.70453069]
[1757232438811,2.59016009,866.37,864.46,0.70453069]
[1757232439014,2.59016009,866.36,864.47,0.70453069]
[1757232439310,2.59016009,866.36,864.48,0.70453069]
[1757232439515,2.59016009,866.36,864.49,0.70453069]
[1757232439814,2.59016009,866.36,864.5,0.70453069]
[1757232440011,2.59016009,866.36,864.51,0.70453069]
[1757232440212,2.59016009,866.36,864.52,0.70453069]
[1757232440412,2.59016009,866.36,864.53,0.70453069]
[1757232440614,2.59016009,866.36,864.54,0.70453069]
[1757232440817,2.59016009,866.36,864.55,0.70453069]
[1757232441029,2.59016009,866.36,864.56,0.70453069]
[1757232441326,2.59016009,866.36,864.57,0.70453069]
[1757232441626,2.59016009,866.36,864.58,0.70453069]
[1757232441829,2.59016009,866.36,864.59,0.70453069]
[1757232442031,2.59016009,866.36,864.6,0.70453069]
[1757232442330,3.62502836,866.35,864.61,0.70453069]
[1757232442527,3.62502836,866.35,864.62,0.70453069]
[1757232442827,2.59016009,866.01,864.63,0.70453069]
[1757232443029,2.59016009,866.01,864.64,0.70453069]
[1757232443231,2.59016009,865.84,864.37,0.77549611]
[1757232443432,3.62502836,866.13,864.38,0.70451057]
[1757232443728,3.62502836,866.13,864.39,0.70451057]
[1757232443930,3.59042309,866.13,864.4,0.70451057]
[1757232444126,3.59042309,866.13,864.41,0.70451057]
[1757232444329,3.59042309,866.13,864.42,0.70451057]
[1757232444529,3.59042309,866.13,863.49,2.5894467]
[1757232444530,5.17691132,866.59,864.43,1.48000668]
[1757232444726,5.17691132,866.59,864.44,0.70451057]
[1757232444927,5.17691132,866.59,864.74,0.20068105]
[1757232446032,5.17691132,866.9,864.74,0.20068105]
[1757232448229,5.17691132,866.95,864.74,0.20068105]
[1757232450133,5.17691132,866.76,864.74,0.20068105]
[1757232451937,3.62131877,866.59,864.74,0.20068105]
[1757232452135,3.62131877,866.59,864.75,0.72786513]
[1757232452438,2.58617868,866.3,864.76,0.72786513]
[1757232452638,2.58617868,866.3,864.77,0.72786513]
[1757232452839,3.62131877,866.59,864.78,0.72786513]
[1757232453037,2.58617868,866.92,864.79,0.72786513]
[1757232453240,2.58617868,866.92,864.8,0.72786513]
[1757232453441,2.58617868,866.93,864.81,0.72786513]
[1757232453640,2.58617868,866.93,864.82,0.72786513]
[1757232453837,2.58617868,866.94,864.83,0.72786513]
[1757232454136,2.58617868,866.94,864.84,0.72786513]
[1757232454439,2.58617868,866.96,864.85,0.72786513]
[1757232454636,2.58617868,866.84,864.86,0.72786513]
[1757232454836,2.58617868,866.84,864.87,0.72786513]
[1757232455041,2.58617868,867.14,864.88,0.72786513]
[1757232455240,2.58617868,867.17,864.89,0.72786513]
[1757232455438,3.62131877,867.91,864.9,0.72786513]
[1757232455641,2.58617868,868.18,865.51,0.77549611]
[1757232455841,2.58617868,868.18,865.59,0.77549611]
[1757232456041,2.58617868,868.08,865.64,0.77549611]
[1757232456238,2.58617868,868.08,865.67,0.77549611]
[1757232456438,2.58617868,868.08,865.68,0.72786513]
[1757232456640,2.58617868,868.47,865.69,0.72786513]
[1757232456843,2.58617868,868.47,865.7,0.72786513]
[1757232457140,2.58617868,868.35,865.71,0.72786513]
[1757232457345,2.58617868,868.87,865.72,0.72786513]
[1757232457545,0.20032697,868.77,865.78,0.77549611]
[1757232457745,2.58617868,868.87,865.79,0.72786513]
[1757232457946,2.58617868,868.9,865.8,0.72786513]
[1757232458146,2.58617868,868.9,865.81,0.72786513]
[1757232458347,2.58617868,868.9,865.82,1.50336124]
[1757232458647,2.58617868,869.46,865.92,0.77549611]
[1757232458947,2.58617868,869.52,866.02,0.77549611]
[1757232459148,2.58617868,869.52,865.47,1.55427412]
[1757232459149,0.2002146,869.14,866.19,0.77549611]
[1757232459344,0.2002146,869.14,866.2,0.72786513]
[1757232459547,2.58617868,869.31,866.21,0.72786513]
[1757232459849,0.20018984,869.29,866.22,0.72786513]
[1757232460050,0.20018984,869.29,866.23,0.72786513]
[1757232460246,2.58617868,869.54,866.24,0.72786513]
[1757232460454,0.20014436,869.29,866.25,0.72786513]
[1757232460747,2.58617868,870.42,866.53,0.77549611]
[1757232460952,0.20010063,869.69,866.71,0.77549611]
[1757232461147,2.58617868,870.5,866.85,0.77549611]
[1757232461350,2.58617868,870.5,866.89,0.77549611]
[1757232461548,2.58617868,870.4,866.92,0.77549611]
[1757232461850,2.58617868,870.4,866.93,0.72786513]
[1757232462047,2.58617868,870.81,866.94,0.72786513]
[1757232462346,0.1999391,870.35,866.95,0.72786513]
[1757232462547,0.1999391,870.35,866.96,0.72786513]
[1757232462751,3.62131877,871.13,866.97,0.72786513]
[1757232462952,0.1999012,870.53,867.02,0.77549611]
[1757232463253,0.1999012,870.53,867.03,0.72786513]
[1757232463449,0.1999012,870.53,867.04,0.72786513]
[1757232463652,0.1999012,870.53,866.57,0.77549611]
[1757232463850,0.1999012,870.53,866.58,0.70425416]
[1757232464049,2.58617868,870.97,866.36,0.77549611]
[1757232464253,2.58617868,870.97,864.8,2.5894467]
[1757232464254,2.58617868,870.97,866.37,0.70507386]
[1757232464450,2.58617868,870.97,866.38,0.70507386]
[1757232464752,2.58617868,870.78,866.39,0.70507386]
[1757232464953,2.58617868,870.78,866.4,0.70507386]
[1757232465249,2.58617868,870.89,866.41,0.70507386]
[1757232465553,2.58617868,870.85,866.47,0.77549611]
[1757232465749,2.58617868,870.85,866.48,0.70507386]
[1757232465954,2.58617868,870.85,866.54,0.77549611]
[1757232466156,2.58617868,871.66,866.85,0.77549611]
[1757232466457,2.58617868,871.98,867.11,0.77549611]
[1757232466656,2.58617868,871.98,866.87,1.03574146]
[1757232466657,2.58617868,872.64,867.32,0.77549611]
[1757232466857,2.58617868,872.64,867.39,0.77549611]
[1757232467157,0.19974974,871.33,867.4,0.70507386]
[1757232467453,2.58617868,872.84,867.41,0.70507386]
[1757232467657,0.19968784,871.41,867.42,0.70507386]
[1757232467954,0.19968784,871.41,867.43,0.70507386]
[1757232468157,0.19968784,871.41,867.44,0.70507386]
[1757232468457,0.19968784,871.41,866.83,0.77549611]
[1757232468658,0.19968784,871.41,866.84,0.69337162]
[1757232468856,0.19968784,871.41,866.92,0.77549611]
[1757232469054,0.19968784,871.41,867.02,0.77549611]
[1757232469255,0.19968784,871.41,867.03,0.69337162]
[1757232469458,0.19968784,871.41,867.04,0.69337162]
[1757232469655,2.58617868,872.8,867.14,0.77549611]
[1757232469858,0.19972796,871.37,867.18,0.77549611]
[1757232470154,0.19972796,871.37,867.19,0.69337162]
[1757232470358,0.19972796,871.37,867.2,0.69337162]
[1757232470559,0.19972796,871.37,866.62,0.77549611]
[1757232470855,0.19972796,871.37,866.63,0.68999732]
[1757232471060,0.19972796,871.37,866.64,0.68999732]
[1757232471254,0.19972796,871.37,866.65,0.68999732]
[1757232471455,0.19972796,871.37,866.66,0.68999732]
[1757232471756,0.19972796,871.37,866.67,0.68999732]
[1757232471953,0.19972796,871.37,866.68,0.68999732]
[1757232472258,0.19972796,871.37,866.69,0.68999732]
[1757232472459,0.19972796,871.37,866.2,0.77549611]
[1757232472658,0.19972796,871.37,866.21,0.68880942]
[1757232472856,0.19972796,871.37,866.34,0.77549611]
[1757232473057,0.19972796,871.37,866.55,0.77549611]
[1757232473256,0.19972796,871.37,866.56,1.46430553]
[1757232473456,0.19972796,871.37,866.57,0.68880942]
[1757232473656,0.19972796,871.37,866.84,0.77549611]
[1757232473857,0.19972796,871.37,866.87,0.77549611]
[1757232474060,2.58617868,873.54,866.93,0.77549611]
[1757232474361,2.58617868,873.11,866.94,0.68880942]